[Event "December 12 Early 2023"]
[Site "https://www.chess.com"]
[Date "2023.12.12"]
[Round "8"]
[White "Mendez Fortes, Eduardo Jesus"]
[Black "Yuan, Qingyu"]
[Result "0-1"]
[Board "43"]
[TimeControl "180+1"]
[WhiteFideId "3502376"]
[BlackFideId "8609772"]
[WhiteElo "2620"]
[BlackElo "2786"]
[WhiteTeam "CUB"]
[BlackTeam "CHN"]
[WhiteClock "0:00:05"]
[BlackClock "0:00:09"]

1. e4 {[%clk 0:02:59]}  e5 {[%clk 0:02:59]} 2. Nf3 {[%clk 0:02:59]}  Nc6 {[%clk 0:03:00]} 3. Bb5 {[%clk 0:03:00]}  Nf6 {[%clk 0:03:00]} 4. d3 {[%clk 0:02:57]}  Bc5 {[%clk 0:03:00]} 5. O-O {[%clk 0:02:57]}  Nd4 {[%clk 0:03:00]} 6. Nxd4 {[%clk 0:02:57]}  Bxd4 {[%clk 0:03:01]} 7. c3 {[%clk 0:02:57]}  Bb6 {[%clk 0:03:02]} 8. h3 {[%clk 0:02:56]}  O-O {[%clk 0:03:01]} 9. Nd2 {[%clk 0:02:54]}  d5 {[%clk 0:02:57]} 10. Qe2 {[%clk 0:02:53]}  c6 {[%clk 0:02:53]} 11. Ba4 {[%clk 0:02:53]}  Re8 {[%clk 0:02:52]} 12. Rd1 {[%clk 0:02:42]}  h6 {[%clk 0:02:51]} 13. Nf1 {[%clk 0:02:41]}  Qe7 {[%clk 0:02:21]} 14. Ng3 {[%clk 0:02:27]}  Be6 {[%clk 0:02:21]} 15. exd5 {[%clk 0:02:07]}  Bxd5 {[%clk 0:02:19]} 16. c4 {[%clk 0:02:04]}  Be6 {[%clk 0:02:18]} 17. Qxe5 {[%clk 0:01:45]}  Qb4 {[%clk 0:02:10]} 18. Bc2 {[%clk 0:01:42]}  Bg4 {[%clk 0:01:58]} 19. Bd2 {[%clk 0:01:25]}  Rxe5 {[%clk 0:01:23]} 20. Bxb4 {[%clk 0:01:16]}  Bxd1 {[%clk 0:01:23]} 21. Rxd1 {[%clk 0:01:17]}  Bd4 {[%clk 0:01:22]} 22. Bc3 {[%clk 0:01:10]}  Rd8 {[%clk 0:01:18]} 23. Kf1 {[%clk 0:01:08]}  b6 {[%clk 0:01:08]} 24. Ne2 {[%clk 0:01:06]}  Bxc3 {[%clk 0:01:07]} 25. bxc3 {[%clk 0:01:07]}  Re7 {[%clk 0:00:55]} 26. d4 {[%clk 0:01:06]}  c5 {[%clk 0:00:51]} 27. d5 {[%clk 0:01:05]}  Ne8 {[%clk 0:00:51]} 28. Ng3 {[%clk 0:01:04]}  Nd6 {[%clk 0:00:47]} 29. Bd3 {[%clk 0:01:04]}  g6 {[%clk 0:00:47]} 30. h4 {[%clk 0:01:04]}  Kg7 {[%clk 0:00:45]} 31. h5 {[%clk 0:01:05]}  g5 {[%clk 0:00:45]} 32. a4 {[%clk 0:01:03]}  Re5 {[%clk 0:00:41]} 33. a5 {[%clk 0:00:58]}  b5 {[%clk 0:00:38]} 34. cxb5 {[%clk 0:00:57]}  c4 {[%clk 0:00:29]} 35. Be2 {[%clk 0:00:54]}  Nxb5 {[%clk 0:00:28]} 36. Bxc4 {[%clk 0:00:54]}  Nxc3 {[%clk 0:00:28]} 37. Rd4 {[%clk 0:00:50]}  Nxd5 {[%clk 0:00:23]} 38. Kg1 {[%clk 0:00:36]}  Rd7 {[%clk 0:00:19]} 39. Rd1 {[%clk 0:00:23]}  Nf6 {[%clk 0:00:18]} 40. Rb1 {[%clk 0:00:22]}  Rxa5 {[%clk 0:00:17]} 41. Be2 {[%clk 0:00:19]}  Rc5 {[%clk 0:00:17]} 42. Rb8 {[%clk 0:00:18]}  a5 {[%clk 0:00:17]} 43. Ra8 {[%clk 0:00:17]}  Rdc7 {[%clk 0:00:12]} 44. Kh2 {[%clk 0:00:17]}  Rb7 {[%clk 0:00:10]} 45. Bd3 {[%clk 0:00:17]}  Ng4+ {[%clk 0:00:08]} 46. Kg1 {[%clk 0:00:14]}  Rc1+ {[%clk 0:00:08]} 47. Bf1 {[%clk 0:00:14]}  Rbb1 {[%clk 0:00:06]} 48. Rxa5 {[%clk 0:00:15]}  Nf6 {[%clk 0:00:04]} 49. f3 {[%clk 0:00:12]}  Nd7 {[%clk 0:00:04]} 50. Kf2 {[%clk 0:00:12]}  Rb2+ {[%clk 0:00:04]} 51. Be2 {[%clk 0:00:12]}  Rcc2 {[%clk 0:00:04]} 52. Ra6 {[%clk 0:00:12]}  Nc5 {[%clk 0:00:04]} 53. Rd6 {[%clk 0:00:10]}  f6 {[%clk 0:00:03]} 54. Nf5+ {[%clk 0:00:11]}  Kf7 {[%clk 0:00:03]} 55. Nxh6+ {[%clk 0:00:11]}  Ke7 {[%clk 0:00:04]} 56. Nf5+ {[%clk 0:00:11]}  Kf7 {[%clk 0:00:04]} 57. Ng3 {[%clk 0:00:11]}  Ne6 {[%clk 0:00:05]} 58. h6 {[%clk 0:00:09]}  Nf4 {[%clk 0:00:05]} 59. h7 {[%clk 0:00:09]}  Rxe2+ {[%clk 0:00:03]} 60. Nxe2 {[%clk 0:00:09]}  Rxe2+ {[%clk 0:00:04]} 61. Kf1 {[%clk 0:00:10]}  Re8 {[%clk 0:00:04]} 62. g3 {[%clk 0:00:09]}  Ng6 {[%clk 0:00:04]} 63. Rd7+ {[%clk 0:00:09]}  Ne7 {[%clk 0:00:04]} 64. f4 {[%clk 0:00:09]}  gxf4 {[%clk 0:00:04]} 65. gxf4 {[%clk 0:00:09]}  Rh8 {[%clk 0:00:05]} 66. Kf2 {[%clk 0:00:10]}  Rxh7 {[%clk 0:00:05]} 67. Kg3 {[%clk 0:00:10]}  Rh5 {[%clk 0:00:06]} 68. Ra7 {[%clk 0:00:10]}  Rd5 {[%clk 0:00:06]} 69. Kg4 {[%clk 0:00:10]}  Rb5 {[%clk 0:00:06]} 70. Rc7 {[%clk 0:00:09]}  Rd5 {[%clk 0:00:06]} 71. Ra7 {[%clk 0:00:10]}  Ke6 {[%clk 0:00:06]} 72. Ra6+ {[%clk 0:00:10]}  Rd6 {[%clk 0:00:06]} 73. Ra5 {[%clk 0:00:10]}  Nd5 {[%clk 0:00:06]} 74. Ra8 {[%clk 0:00:09]}  Ne3+ {[%clk 0:00:06]} 75. Kf3 {[%clk 0:00:09]}  Nf5 {[%clk 0:00:07]} 76. Kg4 {[%clk 0:00:09]}  Ne7 {[%clk 0:00:06]} 77. Ra5 {[%clk 0:00:09]}  Rc6 {[%clk 0:00:06]} 78. Rb5 {[%clk 0:00:09]}  Rc1 {[%clk 0:00:06]} 79. Ra5 {[%clk 0:00:10]}  Rg1+ {[%clk 0:00:06]} 80. Kf3 {[%clk 0:00:10]}  Kf7 {[%clk 0:00:06]} 81. Ra7 {[%clk 0:00:09]}  Re1 {[%clk 0:00:06]} 82. Kg4 {[%clk 0:00:09]}  Re2 {[%clk 0:00:06]} 83. Rb7 {[%clk 0:00:09]}  Kg6 {[%clk 0:00:05]} 84. Ra7 {[%clk 0:00:08]}  Nf5 {[%clk 0:00:05]} 85. Kf3 {[%clk 0:00:06]}  Re3+ {[%clk 0:00:05]} 86. Kf2 {[%clk 0:00:07]}  Rb3 {[%clk 0:00:05]} 87. Ra5 {[%clk 0:00:06]}  Nd4 {[%clk 0:00:05]} 88. Kg2 {[%clk 0:00:05]}  Rf3 {[%clk 0:00:04]} 89. Rd5 {[%clk 0:00:05]}  Rxf4 {[%clk 0:00:04]} 90. Kg3 {[%clk 0:00:06]}  Re4 {[%clk 0:00:04]} 91. Rd8 {[%clk 0:00:07]}  Nf5+ {[%clk 0:00:04]} 92. Kf3 {[%clk 0:00:07]}  Re3+ {[%clk 0:00:04]} 93. Kf4 {[%clk 0:00:07]}  Re5 {[%clk 0:00:05]} 94. Rg8+ {[%clk 0:00:07]}  Ng7 {[%clk 0:00:06]} 95. Ra8 {[%clk 0:00:07]}  Rf5+ {[%clk 0:00:06]} 96. Kg4 {[%clk 0:00:07]}  Rg5+ {[%clk 0:00:07]} 97. Kf4 {[%clk 0:00:07]}  Rh5 {[%clk 0:00:07]} 98. Ra7 {[%clk 0:00:06]}  Rh4+ {[%clk 0:00:08]} 99. Kf3 {[%clk 0:00:06]}  Nf5 {[%clk 0:00:08]} 100. Ra8 {[%clk 0:00:06]}  Rb4 {[%clk 0:00:07]} 101. Rg8+ {[%clk 0:00:07]}  Ng7 {[%clk 0:00:07]} 102. Ra8 {[%clk 0:00:05]}  f5 {[%clk 0:00:07]} 103. Rg8 {[%clk 0:00:05]}  Kf6 {[%clk 0:00:07]} 104. Rf8+ {[%clk 0:00:05]}  Kg5 {[%clk 0:00:08]} 105. Rg8 {[%clk 0:00:05]}  Rb3+ {[%clk 0:00:08]} 106. Kf2 {[%clk 0:00:06]}  Kf6 {[%clk 0:00:08]} 107. Rf8+ {[%clk 0:00:06]}  Ke5 {[%clk 0:00:08]} 108. Rg8 {[%clk 0:00:06]}  Ne6 {[%clk 0:00:08]} 109. Re8 {[%clk 0:00:06]}  f4 {[%clk 0:00:08]} 110. Re7 {[%clk 0:00:06]}  Kf5 {[%clk 0:00:09]} 111. Re8 {[%clk 0:00:06]}  Ng5 {[%clk 0:00:09]} 112. Re2 {[%clk 0:00:05]}  Rh3 {[%clk 0:00:08]} 113. Re8 {[%clk 0:00:05]}  Kg4 {[%clk 0:00:08]} 114. Rg8 {[%clk 0:00:04]}  Rh2+ {[%clk 0:00:09]} 115. Kg1 {[%clk 0:00:05]}  Ra2 {[%clk 0:00:09]} 116. Kf1 {[%clk 0:00:04]}  Kf3 {[%clk 0:00:09]} 117. Kg1 {[%clk 0:00:05]}  Nh3+ {[%clk 0:00:08]} 118. Kh1 {[%clk 0:00:05]}  Nf2+ {[%clk 0:00:09]} 119. Kh2 {[%clk 0:00:06]}  Ng4+ {[%clk 0:00:09]} 120. Kh3 {[%clk 0:00:05]}  Rh2# {[%clk 0:00:09]} 0-1

[Event "December 12 Early 2023"]
[Site "https://www.chess.com"]
[Date "2023.12.12"]
[Round "8"]
[White "Saravana, Krishnan P."]
[Black "Gabrielian, Artur"]
[Result "1/2-1/2"]
[Board "45"]
[TimeControl "180+1"]
[WhiteFideId "5018382"]
[BlackFideId "4131002"]
[WhiteElo "2603"]
[BlackElo "2761"]
[WhiteTeam "IND"]
[BlackTeam "RUS"]
[WhiteClock "0:00:14"]
[BlackClock "0:00:16"]

1. e4 {[%clk 0:02:59]}  c5 {[%clk 0:02:59]} 2. Nf3 {[%clk 0:02:59]}  d6 {[%clk 0:02:59]} 3. d4 {[%clk 0:02:58]}  cxd4 {[%clk 0:02:59]} 4. Nxd4 {[%clk 0:02:58]}  Nf6 {[%clk 0:03:00]} 5. Nc3 {[%clk 0:02:59]}  Nc6 {[%clk 0:03:00]} 6. Bg5 {[%clk 0:02:56]}  Bd7 {[%clk 0:03:00]} 7. Qd2 {[%clk 0:02:56]}  Rc8 {[%clk 0:02:59]} 8. Nb3 {[%clk 0:02:49]}  a6 {[%clk 0:02:41]} 9. Bd3 {[%clk 0:02:48]}  e6 {[%clk 0:02:40]} 10. O-O {[%clk 0:02:47]}  Be7 {[%clk 0:02:40]} 11. f4 {[%clk 0:02:47]}  Qc7 {[%clk 0:02:39]} 12. Kh1 {[%clk 0:02:47]}  h6 {[%clk 0:02:39]} 13. Bh4 {[%clk 0:02:46]}  b5 {[%clk 0:02:39]} 14. Rae1 {[%clk 0:02:45]}  b4 {[%clk 0:02:36]} 15. Ne2 {[%clk 0:02:16]}  e5 {[%clk 0:02:32]} 16. Bxf6 {[%clk 0:02:11]}  Bxf6 {[%clk 0:02:31]} 17. Bxa6 {[%clk 0:02:12]}  Ra8 {[%clk 0:02:27]} 18. Qd3 {[%clk 0:01:50]}  O-O {[%clk 0:02:25]} 19. Rd1 {[%clk 0:01:28]}  exf4 {[%clk 0:02:11]} 20. Nxf4 {[%clk 0:01:25]}  Ne5 {[%clk 0:02:10]} 21. Nd5 {[%clk 0:01:16]}  Nxd3 {[%clk 0:01:45]} 22. Nxc7 {[%clk 0:01:14]}  Nxb2 {[%clk 0:01:38]} 23. Nxa8 {[%clk 0:01:03]}  Rxa8 {[%clk 0:00:26]} 24. Rxd6 {[%clk 0:01:01]}  Be6 {[%clk 0:00:26]} 25. Nc1 {[%clk 0:00:20]}  Be5 {[%clk 0:00:17]} 26. Rc6 {[%clk 0:00:19]}  Na4 {[%clk 0:00:14]} 27. Bc4 {[%clk 0:00:17]}  Bd7 {[%clk 0:00:12]} 28. Bxf7+ {[%clk 0:00:15]}  Kh8 {[%clk 0:00:11]} 29. Rc4 {[%clk 0:00:14]}  Nc3 {[%clk 0:00:10]} 30. Rxb4 {[%clk 0:00:11]}  Bb5 {[%clk 0:00:10]} 31. Nd3 {[%clk 0:00:09]}  Bf6 {[%clk 0:00:05]} 32. e5 {[%clk 0:00:09]}  Be7 {[%clk 0:00:06]} 33. Rxb5 {[%clk 0:00:08]}  Nxb5 {[%clk 0:00:06]} 34. Bb3 {[%clk 0:00:07]}  Nd4 {[%clk 0:00:05]} 35. g3 {[%clk 0:00:07]}  g5 {[%clk 0:00:04]} 36. Rf7 {[%clk 0:00:06]}  Ba3 {[%clk 0:00:04]} 37. e6 {[%clk 0:00:06]}  Re8 {[%clk 0:00:03]} 38. Ne5 {[%clk 0:00:06]}  Nxb3 {[%clk 0:00:03]} 39. Ng6+ {[%clk 0:00:06]}  Kg8 {[%clk 0:00:04]} 40. axb3 {[%clk 0:00:06]}  Rxe6 {[%clk 0:00:04]} 41. Ra7 {[%clk 0:00:05]}  Bc5 {[%clk 0:00:04]} 42. Rc7 {[%clk 0:00:05]}  Bb6 {[%clk 0:00:04]} 43. Ne7+ {[%clk 0:00:05]}  Kf8 {[%clk 0:00:04]} 44. Rb7 {[%clk 0:00:06]}  Bc5 {[%clk 0:00:05]} 45. Nd5 {[%clk 0:00:06]}  Re2 {[%clk 0:00:05]} 46. h3 {[%clk 0:00:05]}  h5 {[%clk 0:00:05]} 47. c4 {[%clk 0:00:05]}  Bd4 {[%clk 0:00:05]} 48. Rb8+ {[%clk 0:00:04]}  Kf7 {[%clk 0:00:05]} 49. Rb7+ {[%clk 0:00:04]}  Kg6 {[%clk 0:00:06]} 50. Re7 {[%clk 0:00:04]}  Rb2 {[%clk 0:00:05]} 51. Re4 {[%clk 0:00:04]}  Bc5 {[%clk 0:00:05]} 52. b4 {[%clk 0:00:04]}  Bxb4 {[%clk 0:00:06]} 53. Re6+ {[%clk 0:00:04]}  Kf5 {[%clk 0:00:05]} 54. Rf6+ {[%clk 0:00:05]}  Ke5 {[%clk 0:00:05]} 55. Rb6 {[%clk 0:00:05]}  Bc3 {[%clk 0:00:06]} 56. Rxb2 {[%clk 0:00:04]}  Bxb2 {[%clk 0:00:06]} 57. Kg2 {[%clk 0:00:04]}  Bd4 {[%clk 0:00:06]} 58. Kf3 {[%clk 0:00:04]}  Kf5 {[%clk 0:00:07]} 59. g4+ {[%clk 0:00:04]}  hxg4+ {[%clk 0:00:07]} 60. hxg4+ {[%clk 0:00:05]}  Ke5 {[%clk 0:00:08]} 61. Ne3 {[%clk 0:00:05]}  Bc5 {[%clk 0:00:09]} 62. Nc2 {[%clk 0:00:06]}  Bb6 {[%clk 0:00:08]} 63. Ke2 {[%clk 0:00:05]}  Kf4 {[%clk 0:00:08]} 64. Nb4 {[%clk 0:00:04]}  Kxg4 {[%clk 0:00:09]} 65. Nd5 {[%clk 0:00:05]}  Bc5 {[%clk 0:00:09]} 66. Nf6+ {[%clk 0:00:05]}  Kf5 {[%clk 0:00:09]} 67. Nd5 {[%clk 0:00:05]}  Ke4 {[%clk 0:00:09]} 68. Kf1 {[%clk 0:00:05]}  Kf3 {[%clk 0:00:09]} 69. Nf6 {[%clk 0:00:05]}  Bd4 {[%clk 0:00:09]} 70. Nh5 {[%clk 0:00:05]}  g4 {[%clk 0:00:09]} 71. Ke1 {[%clk 0:00:05]}  Bf2+ {[%clk 0:00:09]} 72. Kd2 {[%clk 0:00:05]}  Bc5 {[%clk 0:00:10]} 73. Kd3 {[%clk 0:00:06]}  Kg2 {[%clk 0:00:10]} 74. Ke4 {[%clk 0:00:06]}  Kh3 {[%clk 0:00:10]} 75. Kf5 {[%clk 0:00:04]}  Ba7 {[%clk 0:00:10]} 76. Nf4+ {[%clk 0:00:04]}  Kh4 {[%clk 0:00:10]} 77. Ng6+ {[%clk 0:00:05]}  Kg3 {[%clk 0:00:10]} 78. Ne5 {[%clk 0:00:05]}  Kf2 {[%clk 0:00:09]} 79. Nxg4+ {[%clk 0:00:05]}  Ke2 {[%clk 0:00:10]} 80. Ke4 {[%clk 0:00:05]}  Kd2 {[%clk 0:00:10]} 81. Kd5 {[%clk 0:00:06]}  Kc3 {[%clk 0:00:11]} 82. Nf6 {[%clk 0:00:06]}  Kb4 {[%clk 0:00:11]} 83. Nd7 {[%clk 0:00:07]}  Bf2 {[%clk 0:00:11]} 84. Ne5 {[%clk 0:00:07]}  Ka5 {[%clk 0:00:11]} 85. Nc6+ {[%clk 0:00:05]}  Kb6 {[%clk 0:00:11]} 86. Ne5 {[%clk 0:00:05]}  Bg1 {[%clk 0:00:11]} 87. Nd3 {[%clk 0:00:06]}  Kc7 {[%clk 0:00:11]} 88. Nb2 {[%clk 0:00:06]}  Bf2 {[%clk 0:00:10]} 89. Na4 {[%clk 0:00:07]}  Bg1 {[%clk 0:00:11]} 90. Nc3 {[%clk 0:00:07]}  Bf2 {[%clk 0:00:11]} 91. Nb5+ {[%clk 0:00:08]}  Kb6 {[%clk 0:00:11]} 92. Nd4 {[%clk 0:00:08]}  Bxd4 {[%clk 0:00:11]} 93. Kxd4 {[%clk 0:00:08]}  Kc6 {[%clk 0:00:12]} 94. c5 {[%clk 0:00:09]}  Kc7 {[%clk 0:00:12]} 95. Kc4 {[%clk 0:00:10]}  Kc6 {[%clk 0:00:13]} 96. Kb4 {[%clk 0:00:10]}  Kc7 {[%clk 0:00:13]} 97. Kb5 {[%clk 0:00:11]}  Kb7 {[%clk 0:00:14]} 98. c6+ {[%clk 0:00:11]}  Kc7 {[%clk 0:00:14]} 99. Kc5 {[%clk 0:00:12]}  Kc8 {[%clk 0:00:15]} 100. Kd5 {[%clk 0:00:12]}  Kc7 {[%clk 0:00:15]} 101. Kc5 {[%clk 0:00:13]}  Kc8 {[%clk 0:00:16]} 102. Kb6 {[%clk 0:00:13]}  Kb8 {[%clk 0:00:16]} 103. Kb5 {[%clk 0:00:13]}  Kc7 {[%clk 0:00:16]} 104. Kc5 {[%clk 0:00:14]} 1/2-1/2

[Event "December 12 Early 2023"]
[Site "https://www.chess.com"]
[Date "2023.12.12"]
[Round "8"]
[White "Rychkov, Oleg"]
[Black "Santos Flores, Alberto"]
[Result "1-0"]
[Board "47"]
[TimeControl "180+1"]
[WhiteFideId "4122852"]
[BlackFideId "3601234"]
[WhiteElo "2745"]
[BlackElo "2565"]
[WhiteTeam "RUS"]
[BlackTeam "ECU"]
[WhiteClock "0:00:40"]
[BlackClock "0:00:00"]

1. e4 {[%clk 0:03:00]}  e6 {[%clk 0:03:00]} 2. d4 {[%clk 0:03:00]}  d5 {[%clk 0:03:00]} 3. Nd2 {[%clk 0:03:00]}  c5 {[%clk 0:03:00]} 4. c3 {[%clk 0:02:59]}  Nc6 {[%clk 0:02:56]} 5. Ngf3 {[%clk 0:02:59]}  cxd4 {[%clk 0:02:56]} 6. cxd4 {[%clk 0:02:58]}  Qb6 {[%clk 0:02:54]} 7. Bd3 {[%clk 0:02:57]}  Nxd4 {[%clk 0:02:51]} 8. O-O {[%clk 0:02:55]}  Nf6 {[%clk 0:02:48]} 9. exd5 {[%clk 0:02:52]}  Nxd5 {[%clk 0:02:34]} 10. Nxd4 {[%clk 0:02:47]}  Qxd4 {[%clk 0:02:34]} 11. Bb5+ {[%clk 0:02:46]}  Bd7 {[%clk 0:02:32]} 12. Bxd7+ {[%clk 0:02:45]}  Kxd7 {[%clk 0:02:33]} 13. Qf3 {[%clk 0:02:45]}  Qf6 {[%clk 0:02:19]} 14. Qb3 {[%clk 0:02:42]}  b6 {[%clk 0:01:58]} 15. Qb5+ {[%clk 0:02:34]}  Kd8 {[%clk 0:01:55]} 16. Ne4 {[%clk 0:02:27]}  Qf5 {[%clk 0:01:51]} 17. Re1 {[%clk 0:02:08]}  Be7 {[%clk 0:01:38]} 18. Bd2 {[%clk 0:02:00]}  h5 {[%clk 0:01:09]} 19. Rac1 {[%clk 0:01:57]}  Rc8 {[%clk 0:01:02]} 20. Rxc8+ {[%clk 0:01:48]}  Kxc8 {[%clk 0:01:03]} 21. Qc6+ {[%clk 0:01:42]}  Kb8 {[%clk 0:01:01]} 22. Nd6 {[%clk 0:01:42]}  Bxd6 {[%clk 0:00:57]} 23. Qxd6+ {[%clk 0:01:42]}  Ka8 {[%clk 0:00:53]} 24. Qc6+ {[%clk 0:01:35]}  Kb8 {[%clk 0:00:53]} 25. Rc1 {[%clk 0:01:35]}  Rd8 {[%clk 0:00:45]} 26. h3 {[%clk 0:01:33]}  Qe5 {[%clk 0:00:44]} 27. Qb5 {[%clk 0:01:19]}  Qd6 {[%clk 0:00:41]} 28. Qe2 {[%clk 0:01:13]}  g6 {[%clk 0:00:35]} 29. Qf3 {[%clk 0:01:12]}  Qd7 {[%clk 0:00:35]} 30. Bg5 {[%clk 0:01:06]}  Rc8 {[%clk 0:00:34]} 31. Rd1 {[%clk 0:01:05]}  Rc7 {[%clk 0:00:30]} 32. Bf4 {[%clk 0:01:02]}  Kb7 {[%clk 0:00:12]} 33. Bxc7 {[%clk 0:01:02]}  Qxc7 {[%clk 0:00:13]} 34. g3 {[%clk 0:00:59]}  Qe7 {[%clk 0:00:12]} 35. Qe4 {[%clk 0:00:57]}  Qd7 {[%clk 0:00:11]} 36. Rd3 {[%clk 0:00:54]}  Qd6 {[%clk 0:00:09]} 37. Qf3 {[%clk 0:00:52]}  Qd7 {[%clk 0:00:09]} 38. h4 {[%clk 0:00:52]}  Kb8 {[%clk 0:00:08]} 39. Kh2 {[%clk 0:00:52]}  Kb7 {[%clk 0:00:09]} 40. Qe4 {[%clk 0:00:50]}  Kb8 {[%clk 0:00:09]} 41. Rf3 {[%clk 0:00:50]}  Kb7 {[%clk 0:00:08]} 42. Qe5 {[%clk 0:00:50]}  Qe7 {[%clk 0:00:06]} 43. Qg7 {[%clk 0:00:50]}  f5 {[%clk 0:00:03]} 44. Qxg6 {[%clk 0:00:50]}  f4 {[%clk 0:00:02]} 45. Qxh5 {[%clk 0:00:45]}  Qc7 {[%clk 0:00:00]} 46. Qg6 {[%clk 0:00:40]} 1-0

[Event "December 12 Early 2023"]
[Site "https://www.chess.com"]
[Date "2023.12.12"]
[Round "8"]
[White "Bazilius, Augustinas"]
[Black "Goltsev, Dmitry"]
[Result "0-1"]
[Board "49"]
[TimeControl "180+1"]
[WhiteFideId "12832251"]
[BlackFideId "24176710"]
[WhiteElo "2449"]
[BlackElo "2669"]
[WhiteTeam "LTU"]
[BlackTeam "RUS"]
[WhiteClock "0:01:19"]
[BlackClock "0:02:05"]

1. e4 {[%clk 0:02:49]}  e6 {[%clk 0:02:55]} 2. d4 {[%clk 0:02:45]}  d5 {[%clk 0:02:56]} 3. Nc3 {[%clk 0:02:46]}  c5 {[%clk 0:02:56]} 4. exd5 {[%clk 0:02:44]}  exd5 {[%clk 0:02:57]} 5. dxc5 {[%clk 0:02:41]}  Nf6 {[%clk 0:02:57]} 6. Bb5+ {[%clk 0:02:40]}  Nc6 {[%clk 0:02:57]} 7. Nge2 {[%clk 0:02:41]}  Bxc5 {[%clk 0:02:58]} 8. O-O {[%clk 0:02:40]}  O-O {[%clk 0:02:58]} 9. Bg5 {[%clk 0:02:41]}  Bg4 {[%clk 0:02:58]} 10. Bxf6 {[%clk 0:02:18]}  Qxf6 {[%clk 0:02:59]} 11. Qxd5 {[%clk 0:02:18]}  Bb6 {[%clk 0:02:56]} 12. Ng3 {[%clk 0:02:10]}  Nd4 {[%clk 0:02:52]} 13. Bd3 {[%clk 0:02:02]}  g6 {[%clk 0:02:36]} 14. Qxb7 {[%clk 0:01:58]}  h5 {[%clk 0:02:34]} 15. Nd5 {[%clk 0:01:56]}  Qh4 {[%clk 0:02:26]} 16. Nxb6 {[%clk 0:01:53]}  axb6 {[%clk 0:02:21]} 17. Qxb6 {[%clk 0:01:53]}  Nf3+ {[%clk 0:02:14]} 18. gxf3 {[%clk 0:01:49]}  Bxf3 {[%clk 0:02:15]} 19. Qxg6+ {[%clk 0:01:49]}  fxg6 {[%clk 0:02:14]} 20. Rfe1 {[%clk 0:01:32]}  Rae8 {[%clk 0:02:11]} 21. a4 {[%clk 0:01:19]}  Qg4 {[%clk 0:02:05]} 0-1

[Event "December 12 Early 2023"]
[Site "https://www.chess.com"]
[Date "2023.12.12"]
[Round "8"]
[White "Bettalli, Francesco"]
[Black "Riehle, Marco"]
[Result "0-1"]
[Board "51"]
[TimeControl "180+1"]
[WhiteFideId "2816453"]
[BlackFideId "12904392"]
[WhiteElo "2588"]
[BlackElo "2865"]
[WhiteTeam "ITA"]
[BlackTeam "GER"]
[WhiteClock "0:01:48"]
[BlackClock "0:02:48"]

1. e4 {[%clk 0:03:00]}  e5 {[%clk 0:02:59]} 2. Nc3 {[%clk 0:02:58]}  Nf6 {[%clk 0:02:58]} 3. Bc4 {[%clk 0:02:59]}  Bc5 {[%clk 0:02:57]} 4. Nf3 {[%clk 0:02:56]}  Nc6 {[%clk 0:02:57]} 5. O-O {[%clk 0:02:56]}  d6 {[%clk 0:02:56]} 6. d3 {[%clk 0:02:55]}  h6 {[%clk 0:02:57]} 7. h3 {[%clk 0:02:55]}  g5 {[%clk 0:02:57]} 8. Nd5 {[%clk 0:02:47]}  g4 {[%clk 0:02:54]} 9. Nh2 {[%clk 0:02:13]}  g3 {[%clk 0:02:53]} 10. Ng4 {[%clk 0:02:01]}  Nxg4 {[%clk 0:02:52]} 11. hxg4 {[%clk 0:02:01]}  Qh4 {[%clk 0:02:52]} 12. Re1 {[%clk 0:01:47]}  gxf2+ {[%clk 0:02:48]} 13. Kf1 {[%clk 0:01:48]} 0-1

[Event "December 12 Early 2023"]
[Site "https://www.chess.com"]
[Date "2023.12.12"]
[Round "8"]
[White "Mikhailovsky, Vladimir"]
[Black "Khamdamova, Afruza"]
[Result "1-0"]
[Board "54"]
[TimeControl "180+1"]
[WhiteFideId "34105414"]
[BlackFideId "14210444"]
[WhiteElo "2788"]
[BlackElo "2542"]
[WhiteTeam "RUS"]
[BlackTeam "UZB"]
[WhiteClock "0:00:43"]
[BlackClock "0:00:00"]

1. e4 {[%clk 0:03:00]}  e5 {[%clk 0:03:00]} 2. f4 {[%clk 0:03:00]}  Nc6 {[%clk 0:03:00]} 3. Nf3 {[%clk 0:03:00]}  exf4 {[%clk 0:02:58]} 4. Bc4 {[%clk 0:03:01]}  Nf6 {[%clk 0:02:54]} 5. d3 {[%clk 0:03:00]}  d5 {[%clk 0:02:48]} 6. exd5 {[%clk 0:03:00]}  Nxd5 {[%clk 0:02:48]} 7. O-O {[%clk 0:03:01]}  Bc5+ {[%clk 0:02:48]} 8. d4 {[%clk 0:03:01]}  Bb6 {[%clk 0:02:48]} 9. c3 {[%clk 0:03:01]}  O-O {[%clk 0:02:47]} 10. Bxd5 {[%clk 0:03:01]}  Qxd5 {[%clk 0:02:47]} 11. Bxf4 {[%clk 0:03:02]}  Bf5 {[%clk 0:02:42]} 12. Nbd2 {[%clk 0:03:01]}  Rae8 {[%clk 0:02:35]} 13. Kh1 {[%clk 0:03:02]}  Bd3 {[%clk 0:02:22]} 14. Re1 {[%clk 0:02:59]}  Ne7 {[%clk 0:02:11]} 15. Ne5 {[%clk 0:02:53]}  Bf5 {[%clk 0:01:56]} 16. Ndf3 {[%clk 0:02:43]}  c5 {[%clk 0:01:53]} 17. dxc5 {[%clk 0:02:42]}  Qxc5 {[%clk 0:01:33]} 18. Nd7 {[%clk 0:02:37]}  Bxd7 {[%clk 0:01:33]} 19. Qxd7 {[%clk 0:02:38]}  Bd8 {[%clk 0:01:14]} 20. Qxb7 {[%clk 0:02:26]}  f6 {[%clk 0:01:05]} 21. Qd7 {[%clk 0:02:14]}  Qc8 {[%clk 0:00:59]} 22. Qa4 {[%clk 0:01:57]}  Bc7 {[%clk 0:00:55]} 23. Bxc7 {[%clk 0:01:54]}  Qxc7 {[%clk 0:00:55]} 24. Nd4 {[%clk 0:01:55]}  Qc8 {[%clk 0:00:33]} 25. Qxa7 {[%clk 0:01:14]}  Nd5 {[%clk 0:00:33]} 26. Qa4 {[%clk 0:00:53]}  Ne3 {[%clk 0:00:32]} 27. Re2 {[%clk 0:00:49]}  Ng4 {[%clk 0:00:27]} 28. Rae1 {[%clk 0:00:48]}  Re5 {[%clk 0:00:24]} 29. Nc6 {[%clk 0:00:45]}  Rxe2 {[%clk 0:00:18]} 30. Rxe2 {[%clk 0:00:45]}  Kh8 {[%clk 0:00:17]} 31. Ne7 {[%clk 0:00:45]}  Qc5 {[%clk 0:00:00]} 32. Qxg4 {[%clk 0:00:43]} 1-0